[Event "December 5 Early 2023"]
[Site "https://www.chess.com"]
[Date "2023.12.05"]
[Round "6"]
[White "Wagner, Dennis"]
[Black "Vokhidov, Shamsiddin"]
[Result "1-0"]
[Board "22"]
[TimeControl "180+1"]
[WhiteFideId "24650684"]
[BlackFideId "14204223"]
[WhiteElo "2767"]
[BlackElo "2919"]
[WhiteTeam "GER"]
[BlackTeam "UZB"]
[WhiteClock "0:00:17"]
[BlackClock "0:01:40"]

1. d4 {[%clk 0:03:00]}  Nf6 {[%clk 0:03:00]} 2. c4 {[%clk 0:02:59]}  e6 {[%clk 0:03:01]} 3. Nc3 {[%clk 0:02:58]}  Bb4 {[%clk 0:03:01]} 4. e3 {[%clk 0:02:52]}  O-O {[%clk 0:03:01]} 5. Bd3 {[%clk 0:02:53]}  Re8 {[%clk 0:03:01]} 6. Ne2 {[%clk 0:02:52]}  d5 {[%clk 0:03:00]} 7. cxd5 {[%clk 0:02:50]}  exd5 {[%clk 0:03:01]} 8. a3 {[%clk 0:02:51]}  Bd6 {[%clk 0:03:01]} 9. Nb5 {[%clk 0:02:46]}  Bf8 {[%clk 0:03:00]} 10. Qc2 {[%clk 0:02:47]}  Na6 {[%clk 0:02:59]} 11. b4 {[%clk 0:02:45]}  c6 {[%clk 0:02:58]} 12. Nbc3 {[%clk 0:02:45]}  Nc7 {[%clk 0:02:59]} 13. Bd2 {[%clk 0:02:40]}  g6 {[%clk 0:02:54]} 14. O-O {[%clk 0:02:40]}  a6 {[%clk 0:02:46]} 15. Rab1 {[%clk 0:02:39]}  Nb5 {[%clk 0:02:46]} 16. a4 {[%clk 0:02:38]}  Na3 {[%clk 0:02:46]} 17. Qb3 {[%clk 0:02:35]}  Nxb1 {[%clk 0:02:46]} 18. Rxb1 {[%clk 0:02:36]}  Ne4 {[%clk 0:02:47]} 19. Bxe4 {[%clk 0:02:27]}  dxe4 {[%clk 0:02:47]} 20. Ng3 {[%clk 0:02:27]}  Be6 {[%clk 0:02:46]} 21. Qc2 {[%clk 0:02:24]}  f5 {[%clk 0:02:45]} 22. Nge2 {[%clk 0:02:23]}  Bc4 {[%clk 0:02:44]} 23. Nf4 {[%clk 0:02:13]}  b5 {[%clk 0:02:40]} 24. Qb2 {[%clk 0:01:36]}  Bd6 {[%clk 0:02:37]} 25. Nfe2 {[%clk 0:01:28]}  a5 {[%clk 0:02:37]} 26. bxa5 {[%clk 0:01:24]}  b4 {[%clk 0:02:37]} 27. Na2 {[%clk 0:01:13]}  Bxe2 {[%clk 0:02:35]} 28. Bxb4 {[%clk 0:01:14]}  Bc4 {[%clk 0:02:34]} 29. Rc1 {[%clk 0:01:07]}  Bd5 {[%clk 0:02:28]} 30. Bxd6 {[%clk 0:01:01]}  Qxd6 {[%clk 0:02:29]} 31. Rc5 {[%clk 0:01:01]}  Reb8 {[%clk 0:02:25]} 32. Nb4 {[%clk 0:01:01]}  Rxa5 {[%clk 0:02:22]} 33. Rxa5 {[%clk 0:00:56]}  Qxb4 {[%clk 0:02:21]} 34. Qxb4 {[%clk 0:00:56]}  Rxb4 {[%clk 0:02:21]} 35. h4 {[%clk 0:00:56]}  Rb2 {[%clk 0:02:18]} 36. Ra7 {[%clk 0:00:52]}  h6 {[%clk 0:02:17]} 37. a5 {[%clk 0:00:51]}  Ra2 {[%clk 0:02:16]} 38. a6 {[%clk 0:00:35]}  Bc4 {[%clk 0:02:14]} 39. Ra8+ {[%clk 0:00:35]}  Kg7 {[%clk 0:02:14]} 40. a7 {[%clk 0:00:36]}  g5 {[%clk 0:02:00]} 41. hxg5 {[%clk 0:00:33]}  hxg5 {[%clk 0:02:01]} 42. Kh2 {[%clk 0:00:28]}  f4 {[%clk 0:02:01]} 43. Kh3 {[%clk 0:00:20]}  Be6+ {[%clk 0:01:59]} 44. Kh2 {[%clk 0:00:20]}  Bd7 {[%clk 0:01:53]} 45. Kg1 {[%clk 0:00:19]}  Kf6 {[%clk 0:01:40]} 46. Rf8+ {[%clk 0:00:17]} 1-0

[Event "December 5 Early 2023"]
[Site "https://www.chess.com"]
[Date "2023.12.05"]
[Round "6"]
[White "Harutjunyan, Gevorg"]
[Black "Csonka, Balazs"]
[Result "1-0"]
[Board "29"]
[TimeControl "180+1"]
[WhiteFideId "13300873"]
[BlackFideId "742910"]
[WhiteElo "2890"]
[BlackElo "2708"]
[WhiteTeam "ARM"]
[BlackTeam "HUN"]
[WhiteClock "0:00:34"]
[BlackClock "0:00:07"]

1. e4 {[%clk 0:03:00]}  c6 {[%clk 0:02:58]} 2. d4 {[%clk 0:02:59]}  d5 {[%clk 0:02:58]} 3. e5 {[%clk 0:03:00]}  c5 {[%clk 0:02:58]} 4. dxc5 {[%clk 0:03:00]}  e6 {[%clk 0:02:58]} 5. Bd3 {[%clk 0:02:57]}  Bxc5 {[%clk 0:02:55]} 6. Nf3 {[%clk 0:02:56]}  Ne7 {[%clk 0:02:53]} 7. O-O {[%clk 0:02:56]}  a6 {[%clk 0:02:41]} 8. Nbd2 {[%clk 0:02:48]}  Nd7 {[%clk 0:02:33]} 9. c4 {[%clk 0:02:43]}  dxc4 {[%clk 0:02:09]} 10. Nxc4 {[%clk 0:02:43]}  O-O {[%clk 0:02:08]} 11. Bxh7+ {[%clk 0:02:37]}  Kxh7 {[%clk 0:02:04]} 12. Ng5+ {[%clk 0:02:37]}  Kg6 {[%clk 0:01:35]} 13. Qg4 {[%clk 0:02:14]}  f5 {[%clk 0:01:34]} 14. Qg3 {[%clk 0:02:10]}  f4 {[%clk 0:00:54]} 15. Qg4 {[%clk 0:01:54]}  Qe8 {[%clk 0:00:54]} 16. Nxe6+ {[%clk 0:01:30]}  Kf7 {[%clk 0:00:53]} 17. Nc7 {[%clk 0:00:56]}  Nf6 {[%clk 0:00:33]} 18. Qxf4 {[%clk 0:00:51]}  Ng6 {[%clk 0:00:26]} 19. Qg3 {[%clk 0:00:33]}  Qc6 {[%clk 0:00:22]} 20. exf6 {[%clk 0:00:33]}  Ra7 {[%clk 0:00:08]} 21. Ne5+ {[%clk 0:00:33]}  Nxe5 {[%clk 0:00:07]} 22. Qxg7# {[%clk 0:00:34]} 1-0

[Event "December 5 Early 2023"]
[Site "https://www.chess.com"]
[Date "2023.12.05"]
[Round "6"]
[White "Volkov, Maksim"]
[Black "Popov, Konstantin"]
[Result "0-1"]
[Board "30"]
[TimeControl "180+1"]
[WhiteFideId "54123070"]
[BlackFideId "34137910"]
[WhiteElo "2704"]
[BlackElo "2874"]
[WhiteTeam "RUS"]
[BlackTeam "FID"]
[WhiteClock "0:00:00"]
[BlackClock "0:00:04"]

1. d4 {[%clk 0:03:00]}  Nf6 {[%clk 0:02:59]} 2. c4 {[%clk 0:03:01]}  e6 {[%clk 0:03:00]} 3. g3 {[%clk 0:03:02]}  d5 {[%clk 0:02:59]} 4. Bg2 {[%clk 0:03:02]}  dxc4 {[%clk 0:02:59]} 5. Nf3 {[%clk 0:03:02]}  Bb4+ {[%clk 0:02:56]} 6. Bd2 {[%clk 0:03:02]}  c5 {[%clk 0:02:56]} 7. Qc2 {[%clk 0:02:52]}  Nc6 {[%clk 0:02:47]} 8. dxc5 {[%clk 0:02:46]}  Bxc5 {[%clk 0:02:46]} 9. Qxc4 {[%clk 0:02:41]}  Qb6 {[%clk 0:02:45]} 10. O-O {[%clk 0:02:39]}  e5 {[%clk 0:02:44]} 11. Nc3 {[%clk 0:02:33]}  Be6 {[%clk 0:02:43]} 12. Qh4 {[%clk 0:02:33]}  Be7 {[%clk 0:02:38]} 13. Ng5 {[%clk 0:02:02]}  Bd7 {[%clk 0:02:19]} 14. Nd5 {[%clk 0:01:33]}  Nxd5 {[%clk 0:02:07]} 15. Bxd5 {[%clk 0:01:33]}  Nd8 {[%clk 0:01:56]} 16. Be3 {[%clk 0:01:25]}  Qg6 {[%clk 0:01:51]} 17. Be4 {[%clk 0:01:12]}  f5 {[%clk 0:01:43]} 18. Bf3 {[%clk 0:01:12]}  O-O {[%clk 0:01:42]} 19. Bh5 {[%clk 0:01:00]}  Qh6 {[%clk 0:01:10]} 20. Rfd1 {[%clk 0:00:45]}  Be6 {[%clk 0:01:10]} 21. Nxe6 {[%clk 0:00:36]}  Qxe6 {[%clk 0:01:09]} 22. Qa4 {[%clk 0:00:35]}  Nc6 {[%clk 0:01:08]} 23. Bf3 {[%clk 0:00:32]}  e4 {[%clk 0:01:08]} 24. Bg2 {[%clk 0:00:33]}  Rfd8 {[%clk 0:01:06]} 25. h4 {[%clk 0:00:31]}  g6 {[%clk 0:01:06]} 26. Kh2 {[%clk 0:00:31]}  Ne5 {[%clk 0:01:06]} 27. Bh3 {[%clk 0:00:28]}  Bf6 {[%clk 0:01:04]} 28. Qb5 {[%clk 0:00:24]}  Nc4 {[%clk 0:01:00]} 29. Bf4 {[%clk 0:00:20]}  b6 {[%clk 0:00:59]} 30. Rac1 {[%clk 0:00:18]}  Rxd1 {[%clk 0:00:38]} 31. Rxd1 {[%clk 0:00:18]}  a6 {[%clk 0:00:39]} 32. Qb3 {[%clk 0:00:16]}  b5 {[%clk 0:00:39]} 33. Qc2 {[%clk 0:00:16]}  Rc8 {[%clk 0:00:35]} 34. Rc1 {[%clk 0:00:11]}  Bxb2 {[%clk 0:00:28]} 35. Rd1 {[%clk 0:00:11]}  Be5 {[%clk 0:00:26]} 36. Bxe5 {[%clk 0:00:10]}  Nxe5 {[%clk 0:00:23]} 37. Qd2 {[%clk 0:00:09]}  Nc6 {[%clk 0:00:18]} 38. Qf4 {[%clk 0:00:09]}  Rd8 {[%clk 0:00:18]} 39. Rc1 {[%clk 0:00:10]}  Rd7 {[%clk 0:00:14]} 40. h5 {[%clk 0:00:10]}  Kf7 {[%clk 0:00:13]} 41. h6 {[%clk 0:00:10]}  Qf6 {[%clk 0:00:11]} 42. Qe3 {[%clk 0:00:09]}  Ne7 {[%clk 0:00:10]} 43. Qc5 {[%clk 0:00:09]}  g5 {[%clk 0:00:10]} 44. a4 {[%clk 0:00:07]}  g4 {[%clk 0:00:10]} 45. Bg2 {[%clk 0:00:07]}  Qxh6+ {[%clk 0:00:10]} 46. Kg1 {[%clk 0:00:07]}  Rd5 {[%clk 0:00:10]} 47. Qc2 {[%clk 0:00:06]}  bxa4 {[%clk 0:00:10]} 48. Rb1 {[%clk 0:00:07]}  Qc6 {[%clk 0:00:09]} 49. Qa2 {[%clk 0:00:06]}  Kg6 {[%clk 0:00:09]} 50. f3 {[%clk 0:00:06]}  Rb5 {[%clk 0:00:06]} 51. Rd1 {[%clk 0:00:06]}  Qb6+ {[%clk 0:00:04]} 52. Kh2 {[%clk 0:00:06]}  Kg7 {[%clk 0:00:04]} 53. fxg4 {[%clk 0:00:06]}  fxg4 {[%clk 0:00:04]} 54. Bxe4 {[%clk 0:00:05]}  Rh5+ {[%clk 0:00:04]} 55. Kg2 {[%clk 0:00:05]}  Qf6 {[%clk 0:00:04]} 56. Rd7 {[%clk 0:00:04]}  Re5 {[%clk 0:00:04]} 57. Qxa4 {[%clk 0:00:03]}  Qe6 {[%clk 0:00:04]} 58. Rd4 {[%clk 0:00:02]}  Nf5 {[%clk 0:00:04]} 59. Qd7+ {[%clk 0:00:01]}  Qxd7 {[%clk 0:00:04]} 60. Rxd7+ {[%clk 0:00:02]}  Kf6 {[%clk 0:00:05]} 61. Bxf5 {[%clk 0:00:02]}  Kxf5 {[%clk 0:00:05]} 62. Rxh7 {[%clk 0:00:02]}  Rxe2+ {[%clk 0:00:05]} 63. Kf1 {[%clk 0:00:03]}  Ra2 {[%clk 0:00:06]} 64. Rh6 {[%clk 0:00:03]}  a5 {[%clk 0:00:04]} 65. Rb6 {[%clk 0:00:03]}  a4 {[%clk 0:00:04]} 66. Ra6 {[%clk 0:00:02]}  Ke4 {[%clk 0:00:04]} 67. Re6+ {[%clk 0:00:00]}  Kf3 {[%clk 0:00:04]} 0-1

[Event "December 5 Early 2023"]
[Site "https://www.chess.com"]
[Date "2023.12.05"]
[Round "6"]
[White "Krysa, Leandro"]
[Black "Bluebaum, Matthias"]
[Result "1-0"]
[Board "34"]
[TimeControl "180+1"]
[WhiteFideId "116807"]
[BlackFideId "24651516"]
[WhiteElo "2721"]
[BlackElo "3034"]
[WhiteTeam "ARG"]
[BlackTeam "GER"]
[WhiteClock "0:00:59"]
[BlackClock "0:01:18"]

1. e4 {[%clk 0:03:00]}  e6 {[%clk 0:03:00]} 2. d4 {[%clk 0:03:00]}  d5 {[%clk 0:03:01]} 3. exd5 {[%clk 0:03:01]}  exd5 {[%clk 0:03:01]} 4. c4 {[%clk 0:03:01]}  Bb4+ {[%clk 0:03:01]} 5. Nc3 {[%clk 0:02:59]}  Ne7 {[%clk 0:03:02]} 6. Bd3 {[%clk 0:02:58]}  dxc4 {[%clk 0:03:01]} 7. Bxc4 {[%clk 0:02:58]}  O-O {[%clk 0:03:02]} 8. Ne2 {[%clk 0:02:58]}  Nbc6 {[%clk 0:03:02]} 9. O-O {[%clk 0:02:58]}  h6 {[%clk 0:02:58]} 10. h3 {[%clk 0:02:57]}  Bf5 {[%clk 0:02:57]} 11. Bf4 {[%clk 0:02:53]}  Bd6 {[%clk 0:02:56]} 12. Qd2 {[%clk 0:02:47]}  Bh7 {[%clk 0:02:48]} 13. Rad1 {[%clk 0:02:40]}  a6 {[%clk 0:02:44]} 14. a3 {[%clk 0:02:39]}  Bxf4 {[%clk 0:02:41]} 15. Qxf4 {[%clk 0:02:36]}  Qd6 {[%clk 0:02:41]} 16. Qxd6 {[%clk 0:02:31]}  cxd6 {[%clk 0:02:42]} 17. Nd5 {[%clk 0:02:26]}  Nxd5 {[%clk 0:02:26]} 18. Bxd5 {[%clk 0:02:26]}  Rac8 {[%clk 0:02:27]} 19. Nc3 {[%clk 0:02:20]}  Rfe8 {[%clk 0:02:22]} 20. Rfe1 {[%clk 0:02:16]}  Bf5 {[%clk 0:02:09]} 21. g4 {[%clk 0:02:06]}  Bd7 {[%clk 0:02:08]} 22. Ne4 {[%clk 0:01:54]}  Ne7 {[%clk 0:02:06]} 23. Bxb7 {[%clk 0:01:48]}  Rb8 {[%clk 0:01:34]} 24. Nxd6 {[%clk 0:01:47]}  Red8 {[%clk 0:01:35]} 25. Rxe7 {[%clk 0:01:42]}  Ba4 {[%clk 0:01:36]} 26. b3 {[%clk 0:01:32]}  Bxb3 {[%clk 0:01:36]} 27. Rb1 {[%clk 0:01:30]}  Bd5 {[%clk 0:01:34]} 28. Rb6 {[%clk 0:01:20]}  Kf8 {[%clk 0:01:22]} 29. Rc7 {[%clk 0:01:09]}  g6 {[%clk 0:01:07]} 30. Bxd5 {[%clk 0:01:05]}  Rxb6 {[%clk 0:01:04]} 31. Rxf7+ {[%clk 0:01:05]}  Kg8 {[%clk 0:01:05]} 32. Rd7+ {[%clk 0:01:04]}  Kf8 {[%clk 0:01:06]} 33. Rf7+ {[%clk 0:01:01]}  Kg8 {[%clk 0:01:06]} 34. Rb7+ {[%clk 0:01:02]}  Kf8 {[%clk 0:01:06]} 35. Rxb6 {[%clk 0:01:02]}  Ke7 {[%clk 0:01:07]} 36. Rxa6 {[%clk 0:01:02]}  h5 {[%clk 0:01:07]} 37. gxh5 {[%clk 0:01:02]}  gxh5 {[%clk 0:01:08]} 38. Nf5+ {[%clk 0:01:02]}  Kf8 {[%clk 0:01:09]} 39. Rf6+ {[%clk 0:01:01]}  Ke8 {[%clk 0:01:09]} 40. Bc6+ {[%clk 0:01:01]}  Rd7 {[%clk 0:01:10]} 41. Bxd7+ {[%clk 0:01:01]}  Kxd7 {[%clk 0:01:11]} 42. a4 {[%clk 0:01:01]}  Kc8 {[%clk 0:01:12]} 43. Rf7 {[%clk 0:01:01]}  h4 {[%clk 0:01:12]} 44. a5 {[%clk 0:01:01]}  Kb8 {[%clk 0:01:13]} 45. a6 {[%clk 0:01:01]}  Ka8 {[%clk 0:01:14]} 46. d5 {[%clk 0:01:00]}  Kb8 {[%clk 0:01:15]} 47. Nd4 {[%clk 0:01:00]}  Ka8 {[%clk 0:01:16]} 48. Nb5 {[%clk 0:01:00]}  Kb8 {[%clk 0:01:17]} 49. Rb7+ {[%clk 0:00:59]}  Ka8 {[%clk 0:01:18]} 50. Nc7# {[%clk 0:00:59]} 1-0

[Event "December 5 Early 2023"]
[Site "https://www.chess.com"]
[Date "2023.12.05"]
[Round "6"]
[White "Makhnev, Denis"]
[Black "Makarian, Rudik"]
[Result "0-1"]
[Board "36"]
[TimeControl "180+1"]
[WhiteFideId "13707647"]
[BlackFideId "44105681"]
[WhiteElo "2686"]
[BlackElo "2985"]
[WhiteTeam "KAZ"]
[BlackTeam "FID"]
[WhiteClock "0:00:00"]
[BlackClock "0:00:05"]

1. Nf3 {[%clk 0:03:00]}  Nf6 {[%clk 0:03:00]} 2. c4 {[%clk 0:03:00]}  e6 {[%clk 0:03:00]} 3. g3 {[%clk 0:02:58]}  d5 {[%clk 0:03:01]} 4. Bg2 {[%clk 0:02:57]}  dxc4 {[%clk 0:03:01]} 5. Qa4+ {[%clk 0:02:57]}  Bd7 {[%clk 0:03:00]} 6. Qxc4 {[%clk 0:02:57]}  c5 {[%clk 0:03:01]} 7. Ne5 {[%clk 0:02:56]}  Qc8 {[%clk 0:03:01]} 8. O-O {[%clk 0:02:55]}  Nc6 {[%clk 0:03:00]} 9. Nxd7 {[%clk 0:02:55]}  Qxd7 {[%clk 0:03:00]} 10. d3 {[%clk 0:02:54]}  Be7 {[%clk 0:03:00]} 11. Nc3 {[%clk 0:02:50]}  O-O {[%clk 0:02:59]} 12. Qa4 {[%clk 0:02:49]}  Rac8 {[%clk 0:02:57]} 13. Bg5 {[%clk 0:02:49]}  Rfd8 {[%clk 0:02:49]} 14. Rfc1 {[%clk 0:02:44]}  b6 {[%clk 0:02:44]} 15. Rab1 {[%clk 0:02:40]}  Nd5 {[%clk 0:02:37]} 16. Bxe7 {[%clk 0:02:26]}  Qxe7 {[%clk 0:02:37]} 17. a3 {[%clk 0:02:21]}  Nd4 {[%clk 0:02:30]} 18. Qd1 {[%clk 0:02:14]}  a5 {[%clk 0:02:24]} 19. Nxd5 {[%clk 0:02:08]}  exd5 {[%clk 0:02:23]} 20. e3 {[%clk 0:02:08]}  Ne6 {[%clk 0:02:20]} 21. b4 {[%clk 0:01:55]}  cxb4 {[%clk 0:02:00]} 22. Rxc8 {[%clk 0:01:53]}  Rxc8 {[%clk 0:01:59]} 23. axb4 {[%clk 0:01:43]}  d4 {[%clk 0:02:00]} 24. bxa5 {[%clk 0:01:42]}  bxa5 {[%clk 0:01:58]} 25. exd4 {[%clk 0:01:25]}  Nxd4 {[%clk 0:01:59]} 26. Ra1 {[%clk 0:01:20]}  Qb4 {[%clk 0:01:48]} 27. Bd5 {[%clk 0:01:15]}  g6 {[%clk 0:01:24]} 28. Qa4 {[%clk 0:01:01]}  Rc1+ {[%clk 0:01:11]} 29. Kg2 {[%clk 0:01:01]}  Rxa1 {[%clk 0:01:09]} 30. Qxa1 {[%clk 0:00:47]}  a4 {[%clk 0:01:04]} 31. Qa2 {[%clk 0:00:47]}  Nb3 {[%clk 0:01:01]} 32. Qe2 {[%clk 0:00:38]}  Kf8 {[%clk 0:00:34]} 33. Qe5 {[%clk 0:00:34]}  Qd4 {[%clk 0:00:34]} 34. Qb8+ {[%clk 0:00:29]}  Kg7 {[%clk 0:00:34]} 35. Bxb3 {[%clk 0:00:29]}  Qb2 {[%clk 0:00:32]} 36. d4 {[%clk 0:00:24]}  Qxb3 {[%clk 0:00:24]} 37. Qe5+ {[%clk 0:00:24]}  f6 {[%clk 0:00:21]} 38. Qe7+ {[%clk 0:00:20]}  Qf7 {[%clk 0:00:21]} 39. Qb4 {[%clk 0:00:19]}  Qa7 {[%clk 0:00:20]} 40. Qc5 {[%clk 0:00:19]}  Qb7+ {[%clk 0:00:11]} 41. d5 {[%clk 0:00:19]}  Kf7 {[%clk 0:00:10]} 42. Qc4 {[%clk 0:00:15]}  Qd7 {[%clk 0:00:06]} 43. d6+ {[%clk 0:00:14]}  Kf8 {[%clk 0:00:06]} 44. Qb4 {[%clk 0:00:14]}  Ke8 {[%clk 0:00:05]} 45. h4 {[%clk 0:00:14]}  Qc6+ {[%clk 0:00:06]} 46. Kh3 {[%clk 0:00:13]}  Kd7 {[%clk 0:00:07]} 47. Kh2 {[%clk 0:00:06]}  h5 {[%clk 0:00:07]} 48. Kg1 {[%clk 0:00:05]}  g5 {[%clk 0:00:07]} 49. hxg5 {[%clk 0:00:05]}  fxg5 {[%clk 0:00:07]} 50. Kh2 {[%clk 0:00:05]}  Qa6 {[%clk 0:00:06]} 51. Qa3 {[%clk 0:00:05]}  Qb5 {[%clk 0:00:06]} 52. Kg2 {[%clk 0:00:04]}  Qd5+ {[%clk 0:00:05]} 53. Kg1 {[%clk 0:00:04]}  Qc4 {[%clk 0:00:05]} 54. Kg2 {[%clk 0:00:03]}  h4 {[%clk 0:00:04]} 55. gxh4 {[%clk 0:00:03]}  gxh4 {[%clk 0:00:05]} 56. Kh3 {[%clk 0:00:00]}  Qb3+ {[%clk 0:00:05]} 0-1

[Event "December 5 Early 2023"]
[Site "https://www.chess.com"]
[Date "2023.12.05"]
[Round "6"]
[White "Bachmann, Axel"]
[Black "Navarrete Mendez, Gonzalo Alberto"]
[Result "1-0"]
[Board "44"]
[TimeControl "180+1"]
[WhiteFideId "3700488"]
[BlackFideId "5106850"]
[WhiteElo "2842"]
[BlackElo "2606"]
[WhiteTeam "PAR"]
[BlackTeam "MEX"]
[WhiteClock "0:01:10"]
[BlackClock "0:00:12"]

1. e4 {[%clk 0:02:58]}  e5 {[%clk 0:02:59]} 2. Nf3 {[%clk 0:02:58]}  Nc6 {[%clk 0:03:00]} 3. d4 {[%clk 0:02:58]}  exd4 {[%clk 0:03:00]} 4. Nxd4 {[%clk 0:02:59]}  Qf6 {[%clk 0:02:59]} 5. Nxc6 {[%clk 0:02:58]}  dxc6 {[%clk 0:03:00]} 6. Bd3 {[%clk 0:02:56]}  Nh6 {[%clk 0:03:00]} 7. O-O {[%clk 0:02:48]}  Ng4 {[%clk 0:02:56]} 8. Nd2 {[%clk 0:02:45]}  Be6 {[%clk 0:02:34]} 9. Nf3 {[%clk 0:02:43]}  Ne5 {[%clk 0:01:55]} 10. Nxe5 {[%clk 0:02:40]}  Qxe5 {[%clk 0:01:56]} 11. Qe2 {[%clk 0:02:37]}  O-O-O {[%clk 0:01:48]} 12. f4 {[%clk 0:02:35]}  Qd4+ {[%clk 0:01:26]} 13. Be3 {[%clk 0:02:27]}  Qxb2 {[%clk 0:01:26]} 14. Rab1 {[%clk 0:02:26]}  Qc3 {[%clk 0:01:23]} 15. f5 {[%clk 0:02:19]}  Bxa2 {[%clk 0:00:51]} 16. Ra1 {[%clk 0:01:51]}  Bb3 {[%clk 0:00:26]} 17. Rxa7 {[%clk 0:01:48]}  Bc5 {[%clk 0:00:24]} 18. Ra8+ {[%clk 0:01:35]}  Kd7 {[%clk 0:00:24]} 19. Rxd8+ {[%clk 0:01:36]}  Rxd8 {[%clk 0:00:24]} 20. cxb3 {[%clk 0:01:33]}  Bxe3+ {[%clk 0:00:20]} 21. Qxe3 {[%clk 0:01:34]}  Kc8 {[%clk 0:00:20]} 22. Rf3 {[%clk 0:01:26]}  Qxb3 {[%clk 0:00:19]} 23. e5 {[%clk 0:01:22]}  Qd1+ {[%clk 0:00:18]} 24. Bf1 {[%clk 0:01:16]}  Qd5 {[%clk 0:00:17]} 25. e6 {[%clk 0:01:11]}  fxe6 {[%clk 0:00:18]} 26. fxe6 {[%clk 0:01:12]}  Re8 {[%clk 0:00:19]} 27. g3 {[%clk 0:01:13]}  Kb8 {[%clk 0:00:17]} 28. e7 {[%clk 0:01:11]}  Rxe7 {[%clk 0:00:12]} 29. Rf8+ {[%clk 0:01:10]} 1-0

[Event "December 5 Early 2023"]
[Site "https://www.chess.com"]
[Date "2023.12.05"]
[Round "6"]
[White "Dyachuk, Artem"]
[Black "Bacrot, Etienne"]
[Result "0-1"]
[Board "45"]
[TimeControl "180+1"]
[WhiteFideId "34107924"]
[BlackFideId "605506"]
[WhiteElo "2590"]
[BlackElo "2832"]
[WhiteTeam "UKR"]
[BlackTeam "FRA"]
[WhiteClock "0:00:04"]
[BlackClock "0:01:22"]

1. e4 {[%clk 0:03:00]}  c5 {[%clk 0:02:59]} 2. Nf3 {[%clk 0:02:59]}  d6 {[%clk 0:03:00]} 3. d4 {[%clk 0:02:59]}  cxd4 {[%clk 0:03:00]} 4. Nxd4 {[%clk 0:03:00]}  Nf6 {[%clk 0:03:00]} 5. Nc3 {[%clk 0:03:00]}  Nc6 {[%clk 0:03:00]} 6. Bg5 {[%clk 0:03:01]}  e6 {[%clk 0:02:59]} 7. Qd3 {[%clk 0:02:57]}  Bd7 {[%clk 0:02:58]} 8. O-O-O {[%clk 0:02:56]}  a6 {[%clk 0:02:55]} 9. f4 {[%clk 0:02:56]}  Be7 {[%clk 0:02:54]} 10. Nf3 {[%clk 0:02:55]}  Qc7 {[%clk 0:02:50]} 11. h3 {[%clk 0:02:45]}  b5 {[%clk 0:02:49]} 12. g4 {[%clk 0:02:42]}  b4 {[%clk 0:02:48]} 13. Ne2 {[%clk 0:02:42]}  a5 {[%clk 0:02:36]} 14. Ng3 {[%clk 0:02:31]}  a4 {[%clk 0:02:33]} 15. Kb1 {[%clk 0:02:26]}  O-O {[%clk 0:02:01]} 16. Bg2 {[%clk 0:01:55]}  Rfc8 {[%clk 0:02:00]} 17. e5 {[%clk 0:01:49]}  b3 {[%clk 0:01:57]} 18. cxb3 {[%clk 0:01:41]}  Nb4 {[%clk 0:01:37]} 19. Qd2 {[%clk 0:01:21]}  axb3 {[%clk 0:01:37]} 20. Rc1 {[%clk 0:00:59]}  Rxa2 {[%clk 0:01:24]} 21. Nd4 {[%clk 0:00:04]}  Ra1+ {[%clk 0:01:22]} 0-1

[Event "December 5 Early 2023"]
[Site "https://www.chess.com"]
[Date "2023.12.05"]
[Round "6"]
[White "Rustemov, Alexander"]
[Black "Tologon tegin, Semetei"]
[Result "1-0"]
[Board "47"]
[TimeControl "180+1"]
[WhiteFideId "4119002"]
[BlackFideId "13800574"]
[WhiteElo "2828"]
[BlackElo "2575"]
[WhiteTeam "RUS"]
[BlackTeam "KGZ"]
[WhiteClock "0:02:00"]
[BlackClock "0:00:00"]

1. d4 {[%clk 0:03:00]}  Nf6 {[%clk 0:02:59]} 2. c4 {[%clk 0:03:01]}  e6 {[%clk 0:02:59]} 3. Nf3 {[%clk 0:03:01]}  b6 {[%clk 0:02:58]} 4. a3 {[%clk 0:02:59]}  Bb7 {[%clk 0:02:57]} 5. Nc3 {[%clk 0:02:59]}  c5 {[%clk 0:02:55]} 6. d5 {[%clk 0:02:56]}  exd5 {[%clk 0:02:55]} 7. cxd5 {[%clk 0:02:57]}  g6 {[%clk 0:02:52]} 8. e4 {[%clk 0:02:58]}  Bg7 {[%clk 0:02:53]} 9. Bd3 {[%clk 0:02:58]}  O-O {[%clk 0:02:52]} 10. O-O {[%clk 0:02:59]}  d6 {[%clk 0:02:49]} 11. h3 {[%clk 0:02:58]}  Nbd7 {[%clk 0:02:41]} 12. Bf4 {[%clk 0:02:57]}  Ne8 {[%clk 0:02:41]} 13. Qd2 {[%clk 0:02:54]}  a6 {[%clk 0:02:40]} 14. a4 {[%clk 0:02:53]}  Qe7 {[%clk 0:02:38]} 15. Rfe1 {[%clk 0:02:52]}  Ne5 {[%clk 0:02:35]} 16. Nxe5 {[%clk 0:02:49]}  Bxe5 {[%clk 0:02:36]} 17. Bh6 {[%clk 0:02:42]}  Bg7 {[%clk 0:02:34]} 18. Bxg7 {[%clk 0:02:39]}  Nxg7 {[%clk 0:02:34]} 19. f4 {[%clk 0:02:36]}  Nh5 {[%clk 0:02:27]} 20. g4 {[%clk 0:02:29]}  Nf6 {[%clk 0:02:24]} 21. Bc4 {[%clk 0:02:24]}  Rfe8 {[%clk 0:02:13]} 22. e5 {[%clk 0:02:22]}  dxe5 {[%clk 0:02:13]} 23. fxe5 {[%clk 0:02:21]}  Nd7 {[%clk 0:02:13]} 24. e6 {[%clk 0:02:08]}  fxe6 {[%clk 0:02:09]} 25. Rxe6 {[%clk 0:02:05]}  Qg7 {[%clk 0:02:02]} 26. Rae1 {[%clk 0:02:02]}  Rxe6 {[%clk 0:01:48]} 27. dxe6 {[%clk 0:02:02]}  Ne5 {[%clk 0:01:47]} 28. e7+ {[%clk 0:02:01]}  Nxc4 {[%clk 0:01:45]} 29. Qd8+ {[%clk 0:02:00]}  Rxd8 {[%clk 0:00:00]} 30. exd8=Q+ {[%clk 0:02:00]} 1-0